bitfinex/quotes_BTCUSD_20240723
["timestamp","ask_amount","ask_price","bid_price","bid_amount"]
[1721713962294,0.3001,66507.0,66506.0,0.91141094]
[1721713962505,0.3001,66507.0,66506.0,1.38215485]
[1721713962725,0.3001,66507.0,66506.0,1.5291175]
[1721713963222,0.3001,66507.0,66506.0,1.08143085]
[1721713963667,0.3011,66507.0,66506.0,1.09543085]
[1721713964118,0.3011,66507.0,66506.0,1.08143085]
[1721713964323,0.3021,66507.0,66506.0,1.09543085]
[1721713965575,0.3021,66507.0,66506.0,0.79470685]
[1721713966320,0.3001,66507.0,66506.0,0.70040685]
[1721713966583,0.3001,66507.0,66506.0,0.39968285]
[1721713966844,0.3001,66507.0,66506.0,0.71440685]
[1721713967295,0.3001,66507.0,66506.0,1.01513085]
[1721713967758,0.3001,66507.0,66506.0,1.14762582]
[1721713968272,0.3001,66507.0,66506.0,1.01513085]
[1721713970170,0.3001,66507.0,66506.0,0.26332085]
[1721713970410,0.3001,66507.0,66506.0,0.41368285]
[1721713970648,0.3001,66507.0,66506.0,0.01400094]
[1721713970649,0.45046,66507.0,66506.0,0.01400094]
[1721713970870,0.45046,66507.0,66506.0,0.02800094]
[1721713970871,0.75118,66507.0,66506.0,0.02800094]
[1721713971312,0.45046,66507.0,66506.0,0.02800094]
[1721713971748,0.75118,66507.0,66506.0,0.02800094]
[1721713971952,1.0519,66507.0,66506.0,0.02800094]
[1721713972531,0.75118,66507.0,66506.0,0.02800094]
[1721713972695,1.0519,66507.0,66506.0,0.02800094]
[1721713972892,0.75118,66507.0,66506.0,0.01400094]
[1721713973121,0.45046,66507.0,66506.0,0.01400094]
[1721713973325,0.75118,66507.0,66506.0,0.02800094]
[1721713973553,0.75118,66507.0,66506.0,0.01400094]
[1721713973756,0.75118,66507.0,66495.0,0.08562891]
[1721713973757,0.4436,66507.0,66502.0,0.01400094]
[1721713973961,0.30073,66505.0,66504.0,0.01400094]
[1721713974164,0.57605988,66505.0,66504.0,0.01400094]
[1721713974365,0.300742,66502.0,66501.0,0.01400094]
[1721713974563,0.751855,66502.0,66501.0,0.01400094]
[1721713975007,0.451113,66502.0,66501.0,0.01400094]
[1721713976633,0.150371,66502.0,66501.0,0.01400094]
[1721713977274,0.4511,66504.0,66503.0,0.01400094]
[1721713977456,0.300725,66506.0,66503.0,0.01400094]
[1721713977608,0.378,66507.0,66506.0,0.01400094]
[1721713977808,0.3001,66507.0,66506.0,0.01400094]
[1721713979011,0.3001,66507.0,66506.0,0.16436294]
[1721713979617,0.3001,66507.0,66506.0,0.01400094]
[1721713979909,0.3001,66507.0,66506.0,0.02700094]
[1721713980033,0.3001,66507.0,66506.0,0.01400094]
[1721713980438,0.3001,66507.0,66506.0,0.17836294]
[1721713980641,0.3001,66507.0,66506.0,0.02800094]
[1721713980886,0.3001,66507.0,66506.0,0.01400094]
[1721713981704,0.3001,66507.0,66506.0,0.31472494]
[1721713981910,0.3001,66507.0,66506.0,0.16436294]
[1721713982284,0.3001,66507.0,66506.0,0.17836294]
[1721713982622,0.3001,66507.0,66506.0,0.94636545]
[1721713982841,0.3001,66507.0,66506.0,0.86230036]
[1721713983080,0.3001,66507.0,66506.0,0.87630036]
[1721713983897,0.3001,66507.0,66506.0,0.78881094]
[1721713984348,0.3001,66507.0,66506.0,0.80281094]
[1721713984561,0.3001,66507.0,66506.0,1.10353494]
[1721713984986,0.3001,66507.0,66506.0,0.80281094]
[1721713986281,0.3001,66507.0,66506.0,0.78881094]
[1721713986690,0.3001,66507.0,66506.0,0.80281094]
[1721713987107,0.3001,66507.0,66506.0,1.10353494]
[1721713987302,0.3001,66507.0,66506.0,0.78881094]
[1721713987513,0.3001,66507.0,66506.0,1.76913994]
[1721713987719,0.3001,66507.0,66506.0,1.81913994]
[1721713987927,0.3001,66507.0,66506.0,1.86913994]
[1721713988161,0.0007,66512.0,66506.0,1.86913994]
[1721713988162,0.0007,66512.0,66508.0,0.05]
[1721713988351,0.0007,66512.0,66511.0,2.25695136]
[1721713988611,0.0007,66512.0,66511.0,2.54621442]
[1721713988804,0.0007,66512.0,66511.0,2.56921442]
[1721713989017,0.00084,66517.0,66516.0,1.96103494]
[1721713989225,0.00084,66517.0,66516.0,2.13105485]
[1721713989427,0.00084,66517.0,66516.0,2.2780175]
[1721713989846,0.00084,66517.0,66516.0,2.3215541]
[1721713990257,0.00084,66517.0,66516.0,2.32155441]
[1721713990668,0.00084,66517.0,66516.0,2.33555441]
[1721713990889,0.00084,66517.0,66516.0,1.9913385]
[1721713991094,0.00084,66517.0,66516.0,1.69437585]
[1721713991299,0.00084,66517.0,66516.0,1.39369685]
[1721713992569,0.00084,66517.0,66516.0,1.74437585]
[1721713992773,0.00084,66517.0,66516.0,1.78037585]
[1721713992945,0.00084,66517.0,66516.0,1.8773385]
[1721713993151,0.00084,66517.0,66516.0,1.9913385]
[1721713993392,0.00084,66517.0,66516.0,2.2780175]
[1721713993526,0.00084,66517.0,66516.0,2.3780175]
[1721713993733,0.00084,66517.0,66516.0,2.43769577]
[1721713993943,0.002794,66533.0,66532.0,0.35500394]
[1721713994219,0.0784,66548.0,66532.0,0.35500394]
[1721713994220,0.081194,66548.0,66547.0,0.46480894]
[1721713994391,0.44093655,66550.0,66547.0,0.46480894]
[1721713994392,0.44093655,66550.0,66549.0,0.46479594]
[1721713994593,0.1034,66553.0,66552.0,0.16425894]
[1721713994795,0.1034,66553.0,66552.0,0.01400094]
[1721713995739,0.10424,66553.0,66552.0,0.01400094]
[1721713995881,0.254496,66553.0,66552.0,0.01400094]
[1721713996082,0.555008,66553.0,66550.0,0.01400094]
[1721713996378,0.592283,66551.0,66550.0,0.01400094]
[1721713996727,0.526701,66548.0,66547.0,0.31454094]
[1721713996936,0.827235,66548.0,66547.0,0.30054]
[1721713997347,1.2844365,66548.0,66547.0,0.30054]
[1721713997552,1.292569,66548.0,66547.0,0.30054]
[1721713998385,0.992035,66548.0,66547.0,0.31454094]
[1721713998741,0.691501,66548.0,66547.0,0.31454094]
[1721713999568,0.992035,66548.0,66547.0,0.30054]
[1721713999726,0.691501,66548.0,66547.0,0.31454094]
[1721713999933,0.390967,66548.0,66547.0,0.31454094]
[1721714000391,0.1407,66548.0,66547.0,0.32854094]
[1721714000797,0.1407,66548.0,66547.0,0.31454094]
[1721714001044,0.1407,66548.0,66547.0,0.32354094]
[1721714001457,0.1407,66548.0,66547.0,0.31454094]
[1721714001806,0.591501,66548.0,66547.0,0.32854094]
[1721714001969,0.290967,66548.0,66547.0,0.31454094]
[1721714002589,0.591501,66548.0,66547.0,0.31454094]
[1721714003685,0.1407,66548.0,66547.0,0.31454094]
[1721714003910,0.290967,66548.0,66547.0,0.31454094]
[1721714004107,0.1407,66548.0,66547.0,0.32854094]
[1721714004492,0.1407,66548.0,66547.0,0.31454094]
[1721714004852,0.1407,66548.0,66547.0,0.32854094]
[1721714005059,0.0759,66548.0,66547.0,0.31454094]
[1721714005439,0.0759,66548.0,66547.0,0.77934894]
[1721714006046,0.0759,66548.0,66547.0,0.47880994]
[1721714006296,0.10434,66553.0,66552.0,0.01400094]
[1721714007038,0.254596,66553.0,66552.0,0.01400094]
[1721714007300,0.555108,66553.0,66552.0,0.01400094]
[1721714007792,0.555108,66553.0,66552.0,0.02500094]
[1721714007993,0.555108,66553.0,66552.0,0.01400094]
[1721714008361,0.555108,66553.0,66552.0,0.02500094]
[1721714008718,0.555108,66553.0,66552.0,0.01400094]
[1721714009348,0.404852,66553.0,66552.0,0.01400094]
[1721714009559,0.450781,66551.0,66550.0,0.01400094]
[1721714009972,0.593381,66551.0,66550.0,0.01400094]
[1721714010303,0.443121,66551.0,66548.0,0.01400094]
[1721714010553,0.450795,66549.0,66548.0,0.01400094]
[1721714010737,0.150265,66549.0,66548.0,0.01400094]
[1721714010955,0.593381,66551.0,66550.0,0.01400094]
[1721714011170,0.593381,66551.0,66550.0,0.02700094]
[1721714011619,0.1426,66551.0,66550.0,0.01400094]
[1721714012045,0.0798,66551.0,66550.0,0.01400094]
[1721714012248,0.02584,66553.0,66552.0,0.01400094]
[1721714013257,0.02584,66553.0,66552.0,0.46477494]
[1721714013908,0.02584,66553.0,66552.0,0.01400094]
[1721714014230,0.02584,66553.0,66552.0,0.16425894]
[1721714015379,0.02584,66553.0,66552.0,0.17625894]
[1721714017001,0.02584,66553.0,66552.0,0.02600094]
[1721714017201,0.02584,66553.0,66552.0,0.17625894]
[1721714018208,0.02584,66553.0,66552.0,0.02600094]
[1721714018409,0.476608,66553.0,66552.0,0.02600094]
[1721714018641,1.32049447,66553.0,66552.0,0.012]
[1721714018812,0.91972,66553.0,66552.0,0.012]
[1721714019600,0.91972,66553.0,66552.0,0.02600094]
[1721714019825,0.619208,66553.0,66552.0,0.02600094]
[1721714020236,0.91972,66553.0,66552.0,0.02600094]
[1721714020448,1.04459349,66553.0,66552.0,0.02600094]
[1721714021182,1.04459349,66553.0,66552.0,0.012]
[1721714022631,1.04459792,66553.0,66552.0,0.012]
[1721714025626,1.0445954,66553.0,66552.0,0.012]
[1721714026225,1.04459467,66553.0,66552.0,0.012]
[1721714028840,1.04459625,66553.0,66552.0,0.012]
[1721714032256,1.04459617,66553.0,66552.0,0.012]
[1721714033346,1.08907096,66553.0,66552.0,0.012]
[1721714033519,1.04459617,66553.0,66552.0,0.012]
[1721714034342,1.11130836,66553.0,66552.0,0.012]
[1721714035041,0.91972,66553.0,66552.0,0.012]
[1721714035265,1.11143697,66553.0,66552.0,0.012]
[1721714035468,1.04459621,66553.0,66552.0,0.012]
[1721714035876,1.11146371,66553.0,66552.0,0.012]
[1721714036075,1.04459621,66553.0,66552.0,0.012]
[1721714036878,1.39722434,66553.0,66552.0,0.012]
[1721714037132,1.51639278,66553.0,66552.0,0.012]
[1721714037340,1.6500743,66553.0,66552.0,0.012]
[1721714037777,1.51639278,66553.0,66552.0,0.012]
[1721714037987,1.49139278,66553.0,66552.0,0.012]
[1721714038192,1.63817615,66553.0,66552.0,0.012]
[1721714038601,0.751335,66548.0,66547.0,0.30054]
[1721714038853,0.95502278,66548.0,66547.0,0.30054]
[1721714039539,1.25555678,66548.0,66547.0,0.30054]
[1721714039783,1.31655678,66548.0,66547.0,0.30054]
[1721714040686,0.35395478,66548.0,66547.0,0.31454094]
[1721714040961,0.68718267,66548.0,66547.0,0.31454094]
[1721714041454,0.87621778,66548.0,66547.0,0.31454094]
[1721714042205,0.87621778,66548.0,66547.0,0.31954094]
[1721714042425,0.57568378,66548.0,66547.0,0.31454094]
[1721714042638,0.68717245,66548.0,66547.0,0.31454094]
[1721714042888,0.68717245,66548.0,66547.0,0.31754094]
[1721714042889,0.38663845,66548.0,66547.0,0.31754094]
[1721714043091,0.27514978,66548.0,66547.0,0.31754094]
[1721714043329,0.27514978,66548.0,66547.0,0.32054094]
[1721714043533,0.150267,66548.0,66547.0,0.32054094]
[1721714043744,0.27514589,66548.0,66547.0,0.31454094]
[1721714043969,0.38663456,66548.0,66547.0,0.31854094]
[1721714044387,0.27514589,66548.0,66547.0,0.31854094]
[1721714044590,0.38660394,66548.0,66547.0,0.31854094]
[1721714045416,0.98767194,66548.0,66547.0,0.31854094]
[1721714045617,0.63647989,66548.0,66547.0,0.31854094]
[1721714045819,0.63647989,66548.0,66547.0,0.31454094]
[1721714046242,0.63647989,66548.0,66547.0,0.31954094]
[1721714046458,0.63647989,66548.0,66547.0,0.31454094]
[1721714046696,0.63648387,66548.0,66547.0,0.31454094]
[1721714046919,0.63648387,66548.0,66547.0,0.32154094]
[1721714047336,0.93701787,66548.0,66547.0,0.30754]
[1721714047538,0.93701787,66548.0,66547.0,0.31454]
[1721714047745,0.93701787,66548.0,66547.0,0.30054]
[1721714048356,1.01701787,66548.0,66547.0,0.30054]
[1721714049110,1.01701787,66548.0,66547.0,0.30954]
[1721714049549,0.892135,66548.0,66547.0,0.30054]
[1721714049752,1.01702196,66548.0,66547.0,0.30754]
[1721714050165,1.01702196,66548.0,66547.0,0.30054]
[1721714050166,1.01702152,66548.0,66547.0,0.30054]
[1721714050924,1.01702152,66548.0,66547.0,0.30954]
[1721714051777,1.13827891,66548.0,66547.0,0.30954]
[1721714051975,1.59090054,66548.0,66547.0,0.30954]
[1721714052167,1.59090054,66548.0,66547.0,0.009]
[1721714052168,1.58887768,66548.0,66547.0,0.009]
[1721714052369,0.150285,66540.0,66539.0,0.01400094]
[1721714052607,0.57574252,66540.0,66539.0,0.01400094]
[1721714052806,0.5757563,66540.0,66539.0,0.01400094]
[1721714054147,0.23637294,66540.0,66539.0,0.08690094]
[1721714054330,0.1917824,66540.0,66539.0,0.07490094]
[1721714055140,0.1249003,66540.0,66539.0,0.07490094]
[1721714055510,0.1917824,66540.0,66539.0,0.07490094]
[1721714055721,0.12489071,66540.0,66539.0,0.07490094]
[1721714056008,0.06688969,66540.0,66539.0,0.07490094]
[1721714056250,0.1917804,66540.0,66539.0,0.07490094]
[1721714056454,0.1917804,66540.0,66539.0,0.08690094]
[1721714056808,0.1917804,66540.0,66539.0,0.07490094]
[1721714057127,0.1917804,66540.0,66539.0,0.08790094]
[1721714057726,0.12489071,66540.0,66539.0,0.08790094]
[1721714058332,0.12489071,66540.0,66539.0,0.23818794]
[1721714058535,0.12489071,66540.0,66539.0,0.08790094]
[1721714058732,0.12489001,66540.0,66539.0,0.23818794]
[1721714059239,0.04459081,66541.0,66539.0,0.08790094]
[1721714059450,0.04459081,66545.0,66540.0,0.300571]
[1721714059649,0.04459081,66545.0,66543.0,0.150278]
[1721714060006,0.04459081,66546.0,66544.0,0.150275]
[1721714060164,0.04459081,66546.0,66543.0,0.150278]
[1721714060323,0.04459081,66546.0,66545.0,0.01400094]
[1721714061105,0.21715388,66547.0,66545.0,0.01400094]
[1721714061320,0.21715388,66547.0,66546.0,0.01400094]
[1721714061532,0.34203116,66547.0,66546.0,0.07810094]
[1721714061711,0.19175811,66547.0,66546.0,0.07810094]
[1721714061978,0.00084,66553.0,66552.0,0.01400094]
[1721714062181,0.12571043,66553.0,66552.0,0.01400094]
[1721714062596,0.2148983,66553.0,66552.0,0.01400094]
[1721714063209,0.1257092,66553.0,66552.0,0.01400094]
[1721714063414,0.21489932,66553.0,66552.0,0.01400094]
[1721714063621,0.19260333,66553.0,66552.0,0.01400094]
[1721714063828,0.21489932,66553.0,66552.0,0.01400094]
[1721714064019,0.1257092,66553.0,66552.0,0.01400094]
[1721714064209,0.19260153,66553.0,66552.0,0.01400094]
[1721714064423,0.19260023,66553.0,66552.0,0.01600094]
[1721714064672,0.21489932,66553.0,66552.0,0.01400094]
[1721714065038,0.21489636,66553.0,66552.0,0.17625894]
[1721714065237,0.19260166,66553.0,66552.0,0.17625894]
[1721714065450,0.19260166,66553.0,66552.0,0.77729094]
[1721714065451,0.06773121,66553.0,66552.0,0.77729094]
[1721714065605,0.06773121,66553.0,66552.0,0.84139094]
[1721714065606,0.04542958,66553.0,66552.0,0.84139094]
[1721714065808,0.00084,66553.0,66552.0,0.84139094]
[1721714066009,0.00084,66553.0,66552.0,1.39302685]
[1721714066208,0.00084,66553.0,66552.0,1.50700384]
[1721714066434,0.00084,66553.0,66552.0,1.39302685]
[1721714070104,0.00084,66553.0,66552.0,1.44302685]
[1721714070315,0.00084,66553.0,66552.0,1.79354285]
[1721714070613,0.00084,66553.0,66552.0,1.67954191]
[1721714070814,0.00084,66553.0,66552.0,1.4018926]
[1721714071393,0.00084,66553.0,66552.0,1.1013766]
[1721714072087,0.00084,66553.0,66552.0,1.4018926]
[1721714072608,0.00084,66553.0,66552.0,1.54208186]
[1721714073138,0.00084,66553.0,66552.0,1.4018926]
[1721714076049,0.00084,66553.0,66552.0,1.8024086]
[1721714076252,0.00084,66553.0,66552.0,1.8524086]
[1721714076462,0.00084,66553.0,66552.0,1.7904086]
[1721714076695,0.00084,66553.0,66552.0,1.8404086]
[1721714076909,0.00084,66553.0,66552.0,1.8544086]
[1721714077121,0.00084,66553.0,66552.0,1.85137125]
[1721714077320,0.00084,66553.0,66552.0,1.7044086]
[1721714077941,0.00084,66553.0,66552.0,1.4038926]
[1721714078810,0.00084,66553.0,66552.0,1.0222766]
[1721714080855,0.00084,66553.0,66552.0,0.02800094]
[1721714080856,0.216796,66553.0,66552.0,0.02800094]
[1721714081063,0.298396,66553.0,66552.0,0.02800094]
[1721714081264,0.14814,66553.0,66552.0,0.02800094]
[1721714082257,0.08244,66553.0,66552.0,0.17825894]
[1721714082672,0.00084,66553.0,66552.0,1.10513674]
[1721714083076,0.00084,66553.0,66552.0,1.01001085]
[1721714083280,0.08384,66553.0,66552.0,0.05100094]
[1721714083503,0.08384,66553.0,66552.0,0.50177494]
[1721714083871,0.00084,66553.0,66552.0,0.50177494]
[1721714084680,0.00084,66553.0,66552.0,0.80229094]
[1721714085029,0.00084,66553.0,66552.0,0.50177494]
[1721714085857,0.00084,66553.0,66552.0,0.94931085]
[1721714086063,0.00084,66553.0,66552.0,1.08193514]
[1721714086463,0.00084,66553.0,66552.0,1.31562685]
[1721714088385,0.00084,66553.0,66552.0,1.01511085]
[1721714091871,0.00084,66553.0,66552.0,0.94931085]
[1721714096090,0.00084,66553.0,66552.0,1.24982685]
[1721714098579,0.07714,66553.0,66552.0,0.94931085]
[1721714099001,0.07714,66553.0,66552.0,0.64879485]
[1721714099641,0.07714,66553.0,66552.0,0.94931085]
[1721714100457,0.00084,66553.0,66552.0,0.94931085]
[1721714102953,0.00084,66553.0,66552.0,1.24982685]
[1721714103081,0.00084,66553.0,66552.0,0.94931085]
[1721714103291,0.00084,66553.0,66552.0,1.01341085]
[1721714104300,0.00084,66553.0,66552.0,1.31392685]
[1721714104545,0.00084,66553.0,66552.0,1.41392685]
[1721714104916,0.00084,66553.0,66552.0,1.98992482]
[1721714106742,0.00084,66553.0,66552.0,2.00305863]
[1721714107373,0.00084,66553.0,66552.0,1.98905863]
[1721714107584,0.00847,66558.0,66557.0,1.51622394]
[1721714107825,0.00847,66558.0,66557.0,2.13222228]
[1721714108240,0.00847,66558.0,66557.0,2.03222228]
[1721714108446,0.00847,66558.0,66557.0,1.53476563]
[1721714109071,0.00847,66558.0,66557.0,1.89925963]
[1721714109278,0.00847,66558.0,66557.0,1.94925963]
[1721714109688,0.00847,66558.0,66557.0,1.94941292]
[1721714110023,0.00847,66558.0,66557.0,1.99941292]
[1721714110227,0.00847,66558.0,66557.0,2.14637316]
[1721714110633,0.00847,66558.0,66557.0,1.46811651]
[1721714111043,0.00847,66558.0,66557.0,1.47697186]
[1721714111629,0.00847,66558.0,66557.0,1.52697186]
[1721714112254,0.00847,66558.0,66557.0,1.47697186]
[1721714112681,0.00847,66558.0,66557.0,1.4203052]
[1721714112895,0.00847,66558.0,66557.0,1.47695168]
[1721714113092,0.00847,66558.0,66557.0,1.52695168]
[1721714113300,0.00847,66558.0,66557.0,1.4703052]
[1721714113507,0.00847,66558.0,66557.0,1.44496158]
[1721714113708,0.00847,66558.0,66557.0,1.4203052]
[1721714117449,0.00847,66558.0,66557.0,1.4703052]
[1721714118834,0.00847,66558.0,66557.0,1.1198112]
[1721714119034,0.00847,66558.0,66557.0,1.0581112]
[1721714119864,0.15107,66558.0,66557.0,0.17824794]
[1721714120397,0.15107,66558.0,66557.0,0.02800094]
[1721714121121,0.15107,66558.0,66557.0,0.17824794]
[1721714121533,0.15107,66558.0,66557.0,0.47874194]
[1721714122230,0.15107,66558.0,66557.0,0.50174194]
[1721714122760,0.15107,66558.0,66557.0,0.05100094]
[1721714123164,0.902292,66558.0,66557.0,0.014]
[1721714123371,1.202781,66558.0,66557.0,0.014]
[1721714123793,1.54139418,66558.0,66557.0,0.014]
[1721714124003,1.47461312,66558.0,66557.0,0.014]
[1721714124204,1.77510212,66558.0,66557.0,0.014]
[1721714124404,0.150274,66545.0,66544.0,0.01400094]
[1721714124610,0.1386,66545.0,66544.0,0.01400094]
[1721714124813,0.288874,66545.0,66544.0,0.01400094]
[1721714125446,0.1386,66545.0,66544.0,0.01400094]
[1721714125924,0.1386,66545.0,66544.0,0.02800094]
[1721714126124,0.288874,66545.0,66544.0,0.02800094]
[1721714126327,0.1386,66545.0,66544.0,0.02800094]
[1721714128290,0.1386,66545.0,66544.0,0.47882994]
[1721714128626,0.0655,66551.0,66550.0,0.16426194]
[1721714129635,0.065,66554.0,66553.0,0.16425694]
[1721714130487,0.0754,66556.0,66555.0,0.76525794]
[1721714130702,0.0754,66556.0,66555.0,0.48775494]
[1721714130896,0.00847,66558.0,66557.0,0.46474194]
[1721714131115,0.00847,66558.0,66557.0,0.48774194]
[1721714131323,0.00847,66558.0,66557.0,0.18724794]
[1721714131526,0.00847,66558.0,66557.0,0.48774194]
[1721714131732,0.15027,66558.0,66557.0,0.01400094]
[1721714131950,0.300514,66558.0,66557.0,0.02800094]
[1721714132957,0.15027,66558.0,66557.0,0.02800094]
[1721714133469,0.300514,66558.0,66557.0,0.02800094]
[1721714134712,0.300514,66558.0,66557.0,0.05100094]
[1721714134713,0.15027,66558.0,66557.0,0.05100094]
[1721714135109,0.300514,66558.0,66557.0,0.02800094]
[1721714135389,0.601003,66558.0,66557.0,0.02800094]
[1721714135628,0.901492,66558.0,66557.0,0.02800094]
[1721714136203,0.300514,66558.0,66557.0,0.02800094]
[1721714136448,0.601003,66558.0,66557.0,0.02800094]
[1721714136651,0.901492,66558.0,66557.0,0.02800094]
[1721714138698,0.901492,66558.0,66557.0,0.014]
[1721714138699,1.201981,66558.0,66557.0,0.014]
[1721714138908,1.26870391,66558.0,66557.0,0.014]
[1721714139110,1.39357759,66558.0,66557.0,0.014]
[1721714139300,1.201981,66558.0,66557.0,0.014]
[1721714139437,1.24645901,66558.0,66557.0,0.014]
[1721714139903,0.751257,66555.0,66554.0,0.01400094]
[1721714140081,0.829557,66555.0,66554.0,0.01400094]
[1721714140492,0.529054,66555.0,66554.0,0.01400094]
[1721714141109,0.228551,66555.0,66554.0,0.01400094]
[1721714142163,0.529054,66555.0,66554.0,0.02700094]
[1721714144353,0.0783,66555.0,66554.0,0.02700094]
[1721714144757,0.00847,66558.0,66557.0,0.46474194]
[1721714145060,0.00847,66558.0,66557.0,0.61176185]
[1721714145232,0.00847,66558.0,66557.0,0.63476185]
[1721714146195,0.00847,66558.0,66557.0,0.03700094]
[1721714146374,0.00847,66558.0,66557.0,0.01400094]
[1721714146375,0.15167,66558.0,66557.0,0.01400094]
[1721714146575,0.602403,66558.0,66557.0,0.02800094]
[1721714146777,0.902892,66558.0,66557.0,0.02800094]
[1721714147073,0.902892,66558.0,66554.0,0.01400094]
[1721714147074,0.515154,66555.0,66554.0,0.01400094]
[1721714147276,1.19796,66555.0,66554.0,0.01400094]
[1721714147478,1.32282857,66555.0,66554.0,0.01400094]
[1721714148008,1.32282857,66555.0,66538.0,0.0663]
[1721714148009,0.300525,66550.0,66548.0,0.01400094]
[1721714148233,0.1462,66549.0,66548.0,0.01400094]
[1721714148435,0.897525,66549.0,66548.0,0.01400094]
[1721714149411,0.296465,66549.0,66548.0,0.01400094]
[1721714149561,0.296465,66549.0,66548.0,0.02800094]
[1721714150125,0.596995,66549.0,66548.0,0.02800094]
[1721714150730,0.897525,66549.0,66548.0,0.02800094]
[1721714151180,1.02239905,66549.0,66548.0,0.02800094]
[1721714151381,1.32292905,66549.0,66548.0,0.014]
[1721714151728,1.32292905,66549.0,66547.0,0.01400094]
[1721714151729,0.894435,66548.0,66547.0,0.01400094]
[1721714152123,0.75137,66545.0,66544.0,0.01400094]
[1721714152242,0.75137,66545.0,66538.0,0.01400094]
[1721714152243,0.450862,66539.0,66538.0,0.01400094]
[1721714152446,1.32341341,66539.0,66538.0,0.01400094]
[1721714154303,1.02283841,66539.0,66538.0,0.01400094]
[1721714154917,0.897937,66539.0,66538.0,0.01400094]
[1721714155154,1.02283886,66539.0,66538.0,0.02300094]
[1721714155388,0.0824,66538.0,66531.0,0.01400094]
[1721714155597,0.59401,66532.0,66531.0,0.01400094]
[1721714156218,0.894617,66532.0,66531.0,0.01400094]
[1721714157039,0.894617,66532.0,66531.0,0.02800094]
[1721714157855,2.11055766,66532.0,66531.0,0.014]
[1721714158061,2.43549143,66532.0,66531.0,0.014]
[1721714158272,2.70827164,66532.0,66531.0,0.01393822]
[1721714158482,2.59726669,66532.0,66531.0,0.01393822]
[1721714158689,2.59726669,66532.0,66518.0,0.000924]
[1721714158690,1.402992,66519.0,66518.0,0.000924]
[1721714158902,1.71793177,66519.0,66518.0,0.000924]
[1721714159113,1.66793177,66519.0,66518.0,0.000924]
[1721714159323,1.71793177,66519.0,66518.0,0.000924]
[1721714159523,1.81793177,66519.0,66518.0,0.000924]
[1721714159728,1.89720114,66519.0,66518.0,0.000924]
[1721714160163,1.89720114,66519.0,66518.0,0.004924]
[1721714160640,2.05580114,66519.0,66518.0,0.004924]
[1721714160804,2.17442171,66519.0,66518.0,0.004924]
[1721714161005,2.05583261,66519.0,66518.0,0.004924]
[1721714161214,2.17442171,66519.0,66518.0,0.004924]
[1721714161460,2.05583261,66519.0,66518.0,0.004924]
[1721714161662,2.05583261,66519.0,66518.0,0.000924]
[1721714161809,2.05318197,66519.0,66518.0,0.000924]
[1721714161991,2.06318197,66519.0,66518.0,0.000924]
[1721714162700,2.07318197,66519.0,66518.0,0.000924]
[1721714163140,2.07317921,66519.0,66518.0,0.000924]
[1721714164211,1.94390984,66519.0,66518.0,0.000924]
[1721714164863,1.92390984,66519.0,66518.0,0.000924]
[1721714165124,1.97390984,66519.0,66518.0,0.000924]
[1721714165310,1.98390984,66519.0,66518.0,0.000924]
[1721714165462,1.99310396,66519.0,66518.0,0.000924]
[1721714165662,2.14006661,66519.0,66518.0,0.000924]
[1721714166107,2.01509813,66519.0,66518.0,0.000924]
[1721714166350,2.14006511,66519.0,66518.0,0.000924]
[1721714166567,2.01509813,66519.0,66518.0,0.000924]
[1721714166791,2.14006526,66519.0,66518.0,0.000924]
[1721714168493,1.73450261,66519.0,66518.0,0.000924]
[1721714168682,1.78450261,66519.0,66518.0,0.000924]
[1721714169246,1.77450261,66519.0,66518.0,0.000924]
[1721714169481,1.77450068,66519.0,66518.0,0.000924]
[1721714169732,1.78550068,66519.0,66518.0,0.000924]
[1721714169933,1.93246333,66519.0,66518.0,0.000924]
[1721714170083,1.94346333,66519.0,66518.0,0.000924]
[1721714170514,1.44583568,66519.0,66518.0,0.000924]
[1721714170714,1.07177656,66519.0,66518.0,0.000924]
[1721714170872,0.87101136,66519.0,66518.0,0.000924]
[1721714171067,1.17167636,66519.0,66518.0,0.000924]
[1721714171274,0.300651,66523.0,66522.0,0.01400094]
[1721714171493,0.4756,66531.0,66524.0,0.01400094]
[1721714171706,0.002794,66536.0,66531.0,0.00400094]
[1721714171914,0.150294,66536.0,66535.0,0.00400094]
[1721714172316,0.450883,66536.0,66535.0,0.00300094]
[1721714172979,0.464883,66536.0,66535.0,0.00300094]
[1721714173176,0.164294,66536.0,66535.0,0.00300094]
[1721714173401,0.464883,66536.0,66535.0,0.00300094]
[1721714173951,0.564883,66536.0,66535.0,0.00300094]
[1721714174367,0.851472,66536.0,66535.0,0.00300094]
[1721714174789,0.852472,66536.0,66535.0,0.01400094]
[1721714175162,0.852472,66536.0,66535.0,0.00300094]
[1721714175334,0.853472,66536.0,66535.0,0.01500094]
[1721714175471,0.852472,66536.0,66535.0,0.01500094]
[1721714175672,0.852472,66536.0,66535.0,0.00300094]
[1721714176112,0.853472,66536.0,66535.0,0.01400094]
[1721714176324,0.001,66536.0,66535.0,0.00300094]
[1721714176695,0.151294,66536.0,66535.0,0.00300094]
[1721714177239,0.451883,66536.0,66535.0,0.00300094]
[1721714177580,0.752472,66536.0,66535.0,0.00300094]
[1721714177781,0.751482,66535.0,66534.0,0.00300094]
[1721714178449,0.87639954,66535.0,66534.0,0.00300094]
[1721714178764,0.751482,66535.0,66534.0,0.00300094]
[1721714179375,0.87639754,66535.0,66534.0,0.00300094]
[1721714179720,0.87639754,66535.0,66534.0,0.01600094]
[1721714179919,0.87639754,66535.0,66534.0,0.013]
[1721714180120,1.70422329,66535.0,66534.0,0.013]
[1721714180522,1.75422329,66535.0,66534.0,0.013]
[1721714180747,1.70422329,66535.0,66534.0,0.013]
[1721714181150,0.450984,66521.0,66520.0,0.00300094]
[1721714182153,0.450945,66527.0,66526.0,0.00300094]
[1721714184194,0.450984,66521.0,66520.0,0.00300094]
[1721714184395,0.450984,66521.0,66520.0,0.01600094]
[1721714184396,0.451984,66521.0,66520.0,0.01600094]
[1721714184569,0.450984,66521.0,66520.0,0.00300094]
[1721714185542,0.150324,66523.0,66522.0,0.00300094]
[1721714186070,0.451943,66527.0,66526.0,0.00300094]
[1721714186278,0.57686911,66527.0,66526.0,0.00300094]
[1721714186699,0.27624011,66527.0,66526.0,0.00300094]
[1721714187330,0.57586911,66527.0,66526.0,0.00300094]
[1721714187539,0.57586754,66527.0,66526.0,0.00300094]